[Event "Late-Titled-Tuesday-Blitz-February-13-2024"]
[Site "Chess.com"]
[Date "2024.02.13"]
[Round "2"]
[White "TheAlienParty"]
[Black "MAGAExtremist"]
[Result "1/2-1/2"]
[WhiteElo "2396"]
[BlackElo "1927"]
[TimeControl "180+1"]
[EndTime "14:17:56 PST"]
[Termination "Game drawn by repetition"]

1. c4 {[%clk 0:02:58]} 1... c5 {[%clk 0:02:59.7]} 2. Nf3 {[%clk 0:02:57.1]} 2...
Nf6 {[%clk 0:02:59.8]} 3. g3 {[%clk 0:02:56.1]} 3... Nc6 {[%clk 0:02:59.6]} 4.
Bg2 {[%clk 0:02:52]} 4... g6 {[%clk 0:02:58.5]} 5. d4 {[%clk 0:02:51.5]} 5...
cxd4 {[%clk 0:02:58.3]} 6. Nxd4 {[%clk 0:02:51.2]} 6... Bg7 {[%clk 0:02:58.3]}
7. Nc2 {[%clk 0:02:50.2]} 7... O-O {[%clk 0:02:58]} 8. Nc3 {[%clk 0:02:46.5]}
8... d6 {[%clk 0:02:56.9]} 9. O-O {[%clk 0:02:41.5]} 9... Be6 {[%clk 0:02:53.4]}
10. b3 {[%clk 0:02:40.9]} 10... Qd7 {[%clk 0:02:35.8]} 11. Re1 {[%clk
0:02:36.8]} 11... Rfd8 {[%clk 0:02:29.6]} 12. Bb2 {[%clk 0:02:35.3]} 12... d5
{[%clk 0:02:24.3]} 13. Nxd5 {[%clk 0:02:32.1]} 13... Nxd5 {[%clk 0:02:21.9]} 14.
Bxg7 {[%clk 0:02:31.3]} 14... Kxg7 {[%clk 0:02:16.6]} 15. cxd5 {[%clk 0:02:30]}
15... Bxd5 {[%clk 0:02:15.3]} 16. e4 {[%clk 0:02:28.5]} 16... Be6 {[%clk
0:02:11.5]} 17. Qe2 {[%clk 0:02:27.5]} 17... Qd2 {[%clk 0:02:00.3]} 18. Ne3
{[%clk 0:02:18.5]} 18... Qxe2 {[%clk 0:01:51]} 19. Rxe2 {[%clk 0:02:18.1]} 19...
Nd4 {[%clk 0:01:46.2]} 20. Rb2 {[%clk 0:02:17]} 20... Rac8 {[%clk 0:01:44.5]}
21. Rd1 {[%clk 0:02:07.6]} 21... Rd7 {[%clk 0:01:14.6]} 22. Nd5 {[%clk
0:02:00.9]} 22... Bxd5 {[%clk 0:01:14.4]} 23. exd5 {[%clk 0:02:00.4]} 23... Nb5
{[%clk 0:01:10.4]} 24. a4 {[%clk 0:01:54.7]} 24... Nd6 {[%clk 0:01:09.8]} 25.
Rd3 {[%clk 0:01:48.1]} 25... Rc1+ {[%clk 0:01:07.1]} 26. Bf1 {[%clk 0:01:47.6]}
26... Rdc7 {[%clk 0:01:04.5]} 27. Kg2 {[%clk 0:01:45.4]} 27... Re1 {[%clk
0:00:59.6]} 28. Be2 {[%clk 0:01:37.7]} 28... Rec1 {[%clk 0:00:57.2]} 29. Rdd2
{[%clk 0:01:26.3]} 29... a5 {[%clk 0:00:53.3]} 30. b4 {[%clk 0:01:22.9]} 30...
b6 {[%clk 0:00:51.5]} 31. bxa5 {[%clk 0:01:21.8]} 31... bxa5 {[%clk 0:00:51.4]}
32. Rb8 {[%clk 0:01:15]} 32... Ra1 {[%clk 0:00:50.8]} 33. Bb5 {[%clk 0:01:13.3]}
33... Rb1 {[%clk 0:00:48.3]} 34. h4 {[%clk 0:01:05.1]} 34... h5 {[%clk
0:00:43.8]} 35. Re2 {[%clk 0:00:59.8]} 35... Kf6 {[%clk 0:00:43.3]} 36. Ra2
{[%clk 0:00:49.7]} 36... Rc5 {[%clk 0:00:41.5]} 37. Rb6 {[%clk 0:00:38.7]} 37...
Kg7 {[%clk 0:00:38]} 38. Re2 {[%clk 0:00:37.5]} 38... Nxb5 {[%clk 0:00:30.1]}
39. axb5 {[%clk 0:00:37.2]} 39... Rbxb5 {[%clk 0:00:30.7]} 40. Ra6 {[%clk
0:00:34.2]} 40... Rxd5 {[%clk 0:00:30]} 41. Rxe7 {[%clk 0:00:33.6]} 41... Rb2
{[%clk 0:00:28.9]} 42. Re3 {[%clk 0:00:20]} 42... Rf5 {[%clk 0:00:27.4]} 43. Rf3
{[%clk 0:00:20.1]} 43... Rxf3 {[%clk 0:00:27.8]} 44. Kxf3 {[%clk 0:00:20.1]}
44... Ra2 {[%clk 0:00:28.7]} 45. Ke3 {[%clk 0:00:19.5]} 45... a4 {[%clk
0:00:29.6]} 46. f3 {[%clk 0:00:18.6]} 46... a3 {[%clk 0:00:30.5]} 47. g4 {[%clk
0:00:18.4]} 47... Ra1 {[%clk 0:00:31.4]} 48. Kf2 {[%clk 0:00:18.3]} 48... hxg4
{[%clk 0:00:31.3]} 49. fxg4 {[%clk 0:00:18.3]} 49... f5 {[%clk 0:00:31.4]} 50.
h5 {[%clk 0:00:15.8]} 50... fxg4 {[%clk 0:00:31.2]} 51. Rxg6+ {[%clk 0:00:15.2]}
51... Kh7 {[%clk 0:00:32.1]} 52. Ra6 {[%clk 0:00:15.4]} 52... a2 {[%clk
0:00:32.4]} 53. Kg2 {[%clk 0:00:15.4]} 53... g3 {[%clk 0:00:32.3]} 54. h6 {[%clk
0:00:15.4]} 54... Kh8 {[%clk 0:00:30.6]} 55. Ra7 {[%clk 0:00:15.1]} 55... Kg8
{[%clk 0:00:30.6]} 56. Ra8+ {[%clk 0:00:13.2]} 56... Kh7 {[%clk 0:00:30.4]} 57.
Ra6 {[%clk 0:00:14.1]} 57... Kh8 {[%clk 0:00:30.1]} 58. Ra8+ {[%clk 0:00:13.9]}
58... Kh7 {[%clk 0:00:29.6]} 59. Ra6 {[%clk 0:00:14.8]} 1/2-1/2

[Event "Late-Titled-Tuesday-Blitz-February-13-2024"]
[Site "Chess.com"]
[Date "2024.02.13"]
[Round "2"]
[White "AlleyOoper"]
[Black "Oleksandr_Bortnyk"]
[Result "0-1"]
[WhiteElo "2663"]
[BlackElo "3049"]
[TimeControl "180+1"]
[EndTime "14:18:00 PST"]
[Termination "Oleksandr_Bortnyk won by resignation"]

1. d4 {[%clk 0:03:00.9]} 1... Nf6 {[%clk 0:02:58.4]} 2. Nc3 {[%clk 0:03:01.5]}
2... d6 {[%clk 0:02:49.7]} 3. e4 {[%clk 0:03:01.1]} 3... Nbd7 {[%clk 0:02:48.7]}
4. Nf3 {[%clk 0:03:00.7]} 4... e5 {[%clk 0:02:48.5]} 5. Bc4 {[%clk 0:02:58.6]}
5... Be7 {[%clk 0:02:48.4]} 6. O-O {[%clk 0:02:56.8]} 6... h6 {[%clk 0:02:46.5]}
7. a4 {[%clk 0:02:56.8]} 7... c6 {[%clk 0:02:47]} 8. a5 {[%clk 0:02:54]} 8...
Qc7 {[%clk 0:02:47]} 9. b3 {[%clk 0:02:52.2]} 9... Nf8 {[%clk 0:02:45.5]} 10. h3
{[%clk 0:02:50.2]} 10... g5 {[%clk 0:02:45.1]} 11. dxe5 {[%clk 0:02:44.9]} 11...
dxe5 {[%clk 0:02:44.8]} 12. Bb2 {[%clk 0:02:24.2]} 12... g4 {[%clk 0:02:43.7]}
13. hxg4 {[%clk 0:02:24.5]} 13... Bxg4 {[%clk 0:02:41]} 14. Qd3 {[%clk
0:02:23.8]} 14... Ng6 {[%clk 0:02:37.3]} 15. Qe3 {[%clk 0:02:16.7]} 15... Rg8
{[%clk 0:02:25.3]} 16. Nh2 {[%clk 0:02:11.5]} 16... Nf4 {[%clk 0:02:20.1]} 17.
g3 {[%clk 0:01:59.4]} 17... Bh3 {[%clk 0:02:00]} 18. Rfd1 {[%clk 0:01:47.7]}
18... Rg5 {[%clk 0:01:48.4]} 19. Ne2 {[%clk 0:01:40.3]} 19... Nxe2+ {[%clk
0:01:40.2]} 20. Bxe2 {[%clk 0:01:34.4]} 20... Nd7 {[%clk 0:01:27.2]} 21. Nf3
{[%clk 0:01:33.3]} 21... Bc5 {[%clk 0:01:24]} 22. Rxd7 {[%clk 0:01:26.5]} 22...
Rxg3+ {[%clk 0:01:11]} 23. Kh2 {[%clk 0:01:08.5]} 23... Rg2+ {[%clk 0:00:49.5]}
24. Kxh3 {[%clk 0:00:47.6]} 24... Qxd7+ {[%clk 0:00:44.9]} 25. Kxg2 {[%clk
0:00:47.8]} 25... Qg4+ {[%clk 0:00:41.9]} 26. Kf1 {[%clk 0:00:48]} 26... Qh3+
{[%clk 0:00:36.7]} 27. Ke1 {[%clk 0:00:42.6]} 27... Bxe3 {[%clk 0:00:37.2]} 28.
fxe3 {[%clk 0:00:40.7]} 28... Qg3+ {[%clk 0:00:30.6]} 29. Kf1 {[%clk 0:00:38.5]}
29... f6 {[%clk 0:00:29.2]} 30. Rd1 {[%clk 0:00:36.2]} 30... Rd8 {[%clk
0:00:28.5]} 31. Rxd8+ {[%clk 0:00:33.7]} 31... Kxd8 {[%clk 0:00:29.4]} 32. Bc3
{[%clk 0:00:34]} 32... h5 {[%clk 0:00:29.8]} 33. Be1 {[%clk 0:00:34.1]} 33...
Qg4 {[%clk 0:00:28.8]} 34. Bh4 {[%clk 0:00:29.1]} 34... Ke7 {[%clk 0:00:28.8]}
35. Bf2 {[%clk 0:00:15.9]} 35... Qxe4 {[%clk 0:00:27.5]} 36. c4 {[%clk 0:00:12]}
36... Qb1+ {[%clk 0:00:24.8]} 37. Kg2 {[%clk 0:00:12.4]} 37... Qxb3 {[%clk
0:00:23.5]} 38. Nh4 {[%clk 0:00:12.6]} 38... Qa2 {[%clk 0:00:11.7]} 39. Bf1
{[%clk 0:00:11.2]} 39... Qxa5 {[%clk 0:00:11.1]} 40. Nf5+ {[%clk 0:00:11.6]}
40... Ke6 {[%clk 0:00:11]} 41. Ng3 {[%clk 0:00:12.5]} 41... h4 {[%clk
0:00:10.9]} 42. Ne4 {[%clk 0:00:12.3]} 42... Qa2 {[%clk 0:00:10.4]} 43. Nc5+
{[%clk 0:00:12.2]} 43... Ke7 {[%clk 0:00:08.5]} 44. Kf3 {[%clk 0:00:11.1]} 44...
b6 {[%clk 0:00:08]} 45. Ne4 {[%clk 0:00:11.4]} 45... f5 {[%clk 0:00:03.2]} 46.
Bxh4+ {[%clk 0:00:10.9]} 46... Kd7 {[%clk 0:00:03.6]} 47. Nf2 {[%clk 0:00:11.2]}
47... a5 {[%clk 0:00:03.5]} 48. Bg3 {[%clk 0:00:11.3]} 48... Ke6 {[%clk
0:00:03.2]} 49. Bh3 {[%clk 0:00:11]} 49... Qxc4 {[%clk 0:00:02.3]} 50. e4 {[%clk
0:00:11.5]} 50... Qc3+ {[%clk 0:00:02.5]} 51. Kg2 {[%clk 0:00:12]} 51... a4
{[%clk 0:00:03]} 52. exf5+ {[%clk 0:00:11.6]} 52... Kd5 {[%clk 0:00:03.2]} 53.
f6 {[%clk 0:00:11.3]} 53... e4 {[%clk 0:00:03.7]} 54. Bf5 {[%clk 0:00:10.2]}
54... Qf3+ {[%clk 0:00:03.3]} 55. Kh2 {[%clk 0:00:09.7]} 55... Qxf5 {[%clk
0:00:04.2]} 0-1

[Event "Late-Titled-Tuesday-Blitz-February-13-2024"]
[Site "Chess.com"]
[Date "2024.02.13"]
[Round "2"]
[White "mbojan"]
[Black "Atousa"]
[Result "1-0"]
[WhiteElo "2850"]
[BlackElo "2550"]
[TimeControl "180+1"]
[EndTime "14:18:00 PST"]
[Termination "mbojan won by checkmate"]

1. d4 {[%clk 0:03:00.9]} 1... Nf6 {[%clk 0:02:46.7]} 2. c4 {[%clk 0:03:00.6]}
2... e6 {[%clk 0:02:46.9]} 3. Nf3 {[%clk 0:03:00.9]} 3... d5 {[%clk 0:02:45.6]}
4. e3 {[%clk 0:03:01.2]} 4... Be7 {[%clk 0:02:44.2]} 5. Bd3 {[%clk 0:03:01.3]}
5... O-O {[%clk 0:02:43.9]} 6. b3 {[%clk 0:03:01.6]} 6... c5 {[%clk 0:02:43.3]}
7. O-O {[%clk 0:02:58.6]} 7... cxd4 {[%clk 0:02:43.6]} 8. exd4 {[%clk
0:02:58.7]} 8... Nc6 {[%clk 0:02:43.6]} 9. Bb2 {[%clk 0:02:57]} 9... b6 {[%clk
0:02:40.2]} 10. Nbd2 {[%clk 0:02:51.7]} 10... Bb7 {[%clk 0:02:36.3]} 11. Qe2
{[%clk 0:02:49.9]} 11... Rc8 {[%clk 0:02:30.7]} 12. Rac1 {[%clk 0:02:49.4]}
12... h6 {[%clk 0:02:20.6]} 13. Rfe1 {[%clk 0:02:49.1]} 13... Re8 {[%clk
0:02:20.3]} 14. Ne5 {[%clk 0:02:46.2]} 14... dxc4 {[%clk 0:02:10.8]} 15. Nxf7
{[%clk 0:00:55.7]} 15... cxd3 {[%clk 0:01:33.1]} 16. Nxd8 {[%clk 0:00:54.9]}
16... dxe2 {[%clk 0:01:31.3]} 17. Nxb7 {[%clk 0:00:55.5]} 17... Bb4 {[%clk
0:01:14.5]} 18. Bc3 {[%clk 0:00:34.8]} 18... Bxc3 {[%clk 0:00:54.3]} 19. Rxc3
{[%clk 0:00:35.7]} 19... Nxd4 {[%clk 0:00:54.6]} 20. Rd3 {[%clk 0:00:36]} 20...
Nf5 {[%clk 0:00:35]} 21. Nd6 {[%clk 0:00:31.2]} 21... Nxd6 {[%clk 0:00:13.5]}
22. Rxd6 {[%clk 0:00:31.1]} 22... Red8 {[%clk 0:00:06.3]} 23. Rxd8+ {[%clk
0:00:31.1]} 23... Rxd8 {[%clk 0:00:07.2]} 24. Rxe2 {[%clk 0:00:31.8]} 24... Ne4
{[%clk 0:00:07.5]} 25. Nf1 {[%clk 0:00:20.3]} 25... Nc5 {[%clk 0:00:06.7]} 26.
g3 {[%clk 0:00:13.6]} 26... Rd1 {[%clk 0:00:06.8]} 27. Kg2 {[%clk 0:00:14.3]}
27... Kf7 {[%clk 0:00:07.2]} 28. Ne3 {[%clk 0:00:14.4]} 28... a5 {[%clk
0:00:07.3]} 29. Nc4 {[%clk 0:00:15]} 29... Nd7 {[%clk 0:00:05.9]} 30. Re3 {[%clk
0:00:14.8]} 30... Rd5 {[%clk 0:00:05.1]} 31. Re2 {[%clk 0:00:12.8]} 31... Ke7
{[%clk 0:00:05.3]} 32. f4 {[%clk 0:00:11.6]} 32... Rc5 {[%clk 0:00:05.8]} 33.
Kf3 {[%clk 0:00:11.4]} 33... a4 {[%clk 0:00:06.3]} 34. Kg4 {[%clk 0:00:11.5]}
34... axb3 {[%clk 0:00:06.8]} 35. axb3 {[%clk 0:00:12.4]} 35... Rb5 {[%clk
0:00:07.5]} 36. Re3 {[%clk 0:00:12.5]} 36... Rc5 {[%clk 0:00:08.1]} 37. Rd3
{[%clk 0:00:12.4]} 37... b5 {[%clk 0:00:08.5]} 38. Nd2 {[%clk 0:00:10.4]} 38...
Rc2 {[%clk 0:00:08]} 39. Nf3 {[%clk 0:00:06.8]} 39... Nf6+ {[%clk 0:00:08.2]}
40. Kh3 {[%clk 0:00:06.1]} 40... Nd7 {[%clk 0:00:08.7]} 41. Re3 {[%clk
0:00:06.5]} 41... b4 {[%clk 0:00:08.7]} 42. Nd4 {[%clk 0:00:07]} 42... Rc3
{[%clk 0:00:09]} 43. Rxe6+ {[%clk 0:00:06.9]} 43... Kf7 {[%clk 0:00:08.9]} 44.
Ra6 {[%clk 0:00:07.5]} 44... Nc5 {[%clk 0:00:09]} 45. Ra7+ {[%clk 0:00:07.7]}
45... Kg8 {[%clk 0:00:09]} 46. Ra8+ {[%clk 0:00:07.7]} 46... Kh7 {[%clk
0:00:08.6]} 47. Rb8 {[%clk 0:00:08.4]} 47... Nxb3 {[%clk 0:00:07.5]} 48. Ne6
{[%clk 0:00:06.1]} 48... Nc5 {[%clk 0:00:05.8]} 49. Nf8+ {[%clk 0:00:04.2]}
49... Kg8 {[%clk 0:00:06.3]} 50. f5 {[%clk 0:00:05]} 50... b3 {[%clk 0:00:05.1]}
51. Ng6+ {[%clk 0:00:05]} 51... Kf7 {[%clk 0:00:05.3]} 52. Rf8# {[%clk
0:00:05.7]} 1-0

[Event "Late-Titled-Tuesday-Blitz-February-13-2024"]
[Site "Chess.com"]
[Date "2024.02.13"]
[Round "2"]
[White "ZaphenathPaneah"]
[Black "dawid498"]
[Result "0-1"]
[WhiteElo "2180"]
[BlackElo "2694"]
[TimeControl "180+1"]
[EndTime "14:18:00 PST"]
[Termination "dawid498 won on time"]

1. e4 {[%clk 0:03:00.9]} 1... g6 {[%clk 0:02:58.1]} 2. d4 {[%clk 0:03:00.8]}
2... Bg7 {[%clk 0:02:58.8]} 3. c4 {[%clk 0:03:01.4]} 3... d6 {[%clk 0:02:58.3]}
4. f4 {[%clk 0:03:01.5]} 4... Nf6 {[%clk 0:02:58.2]} 5. Nc3 {[%clk 0:03:01.7]}
5... O-O {[%clk 0:02:58.3]} 6. Nf3 {[%clk 0:03:01.6]} 6... c5 {[%clk 0:02:59]}
7. d5 {[%clk 0:03:01.4]} 7... b5 {[%clk 0:02:59.6]} 8. cxb5 {[%clk 0:03:00.5]}
8... a6 {[%clk 0:03:00.2]} 9. Be3 {[%clk 0:02:55.4]} 9... axb5 {[%clk 0:02:46]}
10. Bxb5 {[%clk 0:02:55]} 10... Nxe4 {[%clk 0:02:46.4]} 11. O-O {[%clk
0:02:47.4]} 11... Bxc3 {[%clk 0:02:18.4]} 12. Qc2 {[%clk 0:02:23.9]} 12... Bg7
{[%clk 0:01:38]} 13. Qxe4 {[%clk 0:02:21.7]} 13... Bf5 {[%clk 0:01:38.7]} 14.
Qc4 {[%clk 0:02:20.7]} 14... Bxb2 {[%clk 0:01:39.4]} 15. Rae1 {[%clk 0:02:18.8]}
15... Qa5 {[%clk 0:01:26.9]} 16. a4 {[%clk 0:02:15.7]} 16... Qc3 {[%clk
0:01:19.4]} 17. Qe2 {[%clk 0:02:14.5]} 17... Qf6 {[%clk 0:00:49.2]} 18. Nh4
{[%clk 0:01:43.2]} 18... Bc3 {[%clk 0:00:29.9]} 19. Nxf5 {[%clk 0:01:42.5]}
19... Qxf5 {[%clk 0:00:29.3]} 20. Rc1 {[%clk 0:01:41.2]} 20... Bf6 {[%clk
0:00:28.7]} 21. Bd3 {[%clk 0:01:40.4]} 21... Qxd5 {[%clk 0:00:27.4]} 22. f5
{[%clk 0:01:37.6]} 22... Rxa4 {[%clk 0:00:22]} 23. Bh6 {[%clk 0:01:27.3]} 23...
Nd7 {[%clk 0:00:14.8]} 24. Bxf8 {[%clk 0:01:26]} 24... Nxf8 {[%clk 0:00:15.7]}
25. fxg6 {[%clk 0:01:26.4]} 25... hxg6 {[%clk 0:00:16.3]} 26. Bc4 {[%clk
0:01:20.7]} 26... Qd4+ {[%clk 0:00:13]} 27. Kh1 {[%clk 0:01:21.3]} 27... Kg7
{[%clk 0:00:11.3]} 28. Bb5 {[%clk 0:01:12]} 28... Rb4 {[%clk 0:00:11.4]} 29. Be8
{[%clk 0:01:11.5]} 29... Rb2 {[%clk 0:00:11.4]} 30. Qc4 {[%clk 0:01:08.1]} 30...
Qxc4 {[%clk 0:00:11.6]} 31. Rxc4 {[%clk 0:01:09]} 31... Rb8 {[%clk 0:00:10.6]}
32. Bc6 {[%clk 0:01:06.6]} 32... Ne6 {[%clk 0:00:10.9]} 33. Bd5 {[%clk
0:00:43.7]} 33... Nd4 {[%clk 0:00:11.1]} 34. g4 {[%clk 0:00:43.6]} 34... e6
{[%clk 0:00:07.3]} 35. Bg2 {[%clk 0:00:42]} 35... Rb2 {[%clk 0:00:06.5]} 36. Ra4
{[%clk 0:00:34.4]} 36... g5 {[%clk 0:00:05.3]} 37. Ra7 {[%clk 0:00:33.6]} 37...
d5 {[%clk 0:00:02.2]} 38. h4 {[%clk 0:00:24.3]} 38... gxh4 {[%clk 0:00:03.1]}
39. g5 {[%clk 0:00:24.2]} 39... Bxg5 {[%clk 0:00:03.8]} 40. Rfxf7+ {[%clk
0:00:20.2]} 40... Kg6 {[%clk 0:00:04.3]} 41. Rg7+ {[%clk 0:00:20.1]} 41... Kf5
{[%clk 0:00:03.6]} 42. Bh3+ {[%clk 0:00:16.7]} 42... Kf4 {[%clk 0:00:03.2]} 43.
Raf7+ {[%clk 0:00:16]} 43... Kg3 {[%clk 0:00:03.3]} 44. Rxg5+ {[%clk 0:00:15.5]}
44... Kxh3 {[%clk 0:00:03.9]} 45. Kg1 {[%clk 0:00:07.3]} 45... Ne2+ {[%clk
0:00:03.9]} 46. Kf2 {[%clk 0:00:02.5]} 46... Ng3+ {[%clk 0:00:04.8]} 47. Kf3
{[%clk 0:00:02.8]} 47... Rb3+ {[%clk 0:00:05.1]} 48. Kf4 {[%clk 0:00:03.1]}
48... Rb4+ {[%clk 0:00:05.3]} 49. Ke5 {[%clk 0:00:03]} 49... Re4+ {[%clk
0:00:05.5]} 50. Kf6 {[%clk 0:00:03.1]} 50... c4 {[%clk 0:00:06.4]} 0-1

[Event "Late-Titled-Tuesday-Blitz-February-13-2024"]
[Site "Chess.com"]
[Date "2024.02.13"]
[Round "2"]
[White "Hauptsache_Gambit"]
[Black "Cambek64"]
[Result "1-0"]
[WhiteElo "2079"]
[BlackElo "2500"]
[TimeControl "180+1"]
[EndTime "14:18:00 PST"]
[Termination "Hauptsache_Gambit won on time"]

1. e4 {[%clk 0:02:56]} 1... c5 {[%clk 0:02:59.5]} 2. b4 {[%clk 0:02:55.6]} 2...
cxb4 {[%clk 0:02:57.7]} 3. a3 {[%clk 0:02:56.2]} 3... b3 {[%clk 0:02:58]} 4. c4
{[%clk 0:02:42.7]} 4... Nc6 {[%clk 0:02:55.2]} 5. d4 {[%clk 0:02:38.3]} 5... e5
{[%clk 0:02:53.4]} 6. dxe5 {[%clk 0:02:28.7]} 6... Nxe5 {[%clk 0:02:44.6]} 7.
Qxb3 {[%clk 0:02:25.8]} 7... d6 {[%clk 0:02:41.9]} 8. f4 {[%clk 0:02:17.7]} 8...
Nc6 {[%clk 0:02:39.6]} 9. Nf3 {[%clk 0:02:18]} 9... Nf6 {[%clk 0:02:38.1]} 10.
Bd3 {[%clk 0:02:16.1]} 10... Nd7 {[%clk 0:02:35.9]} 11. O-O {[%clk 0:02:09.5]}
11... Nc5 {[%clk 0:02:30.8]} 12. Qc2 {[%clk 0:02:09.8]} 12... Qb6 {[%clk
0:02:29.7]} 13. Kh1 {[%clk 0:01:55.3]} 13... Be7 {[%clk 0:02:02.9]} 14. Nc3
{[%clk 0:01:46.6]} 14... O-O {[%clk 0:01:48.3]} 15. Nd5 {[%clk 0:01:45.9]} 15...
Qd8 {[%clk 0:01:48]} 16. Bb2 {[%clk 0:01:36.9]} 16... f6 {[%clk 0:01:39.4]} 17.
Nh4 {[%clk 0:00:54.7]} 17... Be6 {[%clk 0:01:27.9]} 18. Rf3 {[%clk 0:00:46.8]}
18... Bxd5 {[%clk 0:01:18.7]} 19. exd5 {[%clk 0:00:42.8]} 19... Nxd3 {[%clk
0:01:12.1]} 20. Qxd3 {[%clk 0:00:40.8]} 20... Nb8 {[%clk 0:01:07.2]} 21. Nf5
{[%clk 0:00:41.2]} 21... g6 {[%clk 0:01:04.7]} 22. Nd4 {[%clk 0:00:38.7]} 22...
Rf7 {[%clk 0:01:03.8]} 23. Re1 {[%clk 0:00:34.8]} 23... Nd7 {[%clk 0:01:00.5]}
24. Rfe3 {[%clk 0:00:31.5]} 24... Nc5 {[%clk 0:01:00]} 25. Qc2 {[%clk
0:00:23.7]} 25... f5 {[%clk 0:00:50.2]} 26. h3 {[%clk 0:00:22.2]} 26... Bf6
{[%clk 0:00:47.9]} 27. Ne6 {[%clk 0:00:22.4]} 27... Qb6 {[%clk 0:00:26.3]} 28.
Bxf6 {[%clk 0:00:19.5]} 28... Rxf6 {[%clk 0:00:20.7]} 29. Ng5 {[%clk 0:00:17.4]}
29... Raf8 {[%clk 0:00:17.5]} 30. Re7 {[%clk 0:00:16.4]} 30... h6 {[%clk
0:00:16.4]} 31. Nf3 {[%clk 0:00:13.3]} 31... Ne4 {[%clk 0:00:15.6]} 32. Kh2
{[%clk 0:00:09.6]} 32... R8f7 {[%clk 0:00:15.2]} 33. Re8+ {[%clk 0:00:09.4]}
33... Kg7 {[%clk 0:00:12.8]} 34. Nh4 {[%clk 0:00:07]} 34... Qc7 {[%clk
0:00:08.7]} 35. Qd3 {[%clk 0:00:06.3]} 35... Qd7 {[%clk 0:00:08]} 36. Rb8 {[%clk
0:00:05.4]} 36... Rf8 {[%clk 0:00:06.7]} 37. Rxf8 {[%clk 0:00:05.5]} 37... Rxf8
{[%clk 0:00:06.9]} 38. Qf3 {[%clk 0:00:06.4]} 38... Qf7 {[%clk 0:00:05.9]} 39.
g3 {[%clk 0:00:06.6]} 39... Rc8 {[%clk 0:00:05.9]} 40. Ng2 {[%clk 0:00:06.7]}
40... Rxc4 {[%clk 0:00:04.1]} 41. Re2 {[%clk 0:00:07.6]} 41... Qxd5 {[%clk
0:00:03.8]} 42. g4 {[%clk 0:00:07.5]} 42... Rc3 {[%clk 0:00:03.9]} 43. Qf1
{[%clk 0:00:03.7]} 43... Qd3 {[%clk 0:00:01.2]} 44. Re3 {[%clk 0:00:02.8]} 1-0

[Event "Late-Titled-Tuesday-Blitz-February-13-2024"]
[Site "Chess.com"]
[Date "2024.02.13"]
[Round "2"]
[White "noblerone"]
[Black "lluiss"]
[Result "1-0"]
[WhiteElo "2457"]
[BlackElo "2142"]
[TimeControl "180+1"]
[EndTime "14:18:03 PST"]
[Termination "noblerone won on time"]

1. d4 {[%clk 0:03:00.9]} 1... d5 {[%clk 0:02:58.6]} 2. Nf3 {[%clk 0:03:01.3]}
2... c6 {[%clk 0:02:58.7]} 3. Bg5 {[%clk 0:03:01]} 3... Qb6 {[%clk 0:02:56.3]}
4. Qc1 {[%clk 0:02:58]} 4... h6 {[%clk 0:02:54.7]} 5. Bh4 {[%clk 0:02:57.9]}
5... Bf5 {[%clk 0:02:53.1]} 6. e3 {[%clk 0:02:58]} 6... Nd7 {[%clk 0:02:45.3]}
7. c4 {[%clk 0:02:58]} 7... e6 {[%clk 0:02:41.4]} 8. Nc3 {[%clk 0:02:58.5]} 8...
Ngf6 {[%clk 0:02:37.1]} 9. c5 {[%clk 0:02:56.9]} 9... Qa5 {[%clk 0:02:31.5]} 10.
a3 {[%clk 0:02:56.1]} 10... Qc7 {[%clk 0:02:17.5]} 11. b4 {[%clk 0:02:50.5]}
11... Be7 {[%clk 0:02:16.1]} 12. Be2 {[%clk 0:02:32.3]} 12... O-O {[%clk
0:02:15.8]} 13. O-O {[%clk 0:02:31.7]} 13... Rfe8 {[%clk 0:02:16.4]} 14. Bg3
{[%clk 0:02:31.3]} 14... Qc8 {[%clk 0:02:13.8]} 15. h3 {[%clk 0:02:31.9]} 15...
Bd8 {[%clk 0:02:13]} 16. b5 {[%clk 0:02:31]} 16... Bc7 {[%clk 0:02:12.9]} 17.
Bxc7 {[%clk 0:02:30.7]} 17... Qxc7 {[%clk 0:02:13.1]} 18. Re1 {[%clk 0:02:10.4]}
18... e5 {[%clk 0:02:13.2]} 19. Qb2 {[%clk 0:02:07.3]} 19... Re7 {[%clk
0:02:04.2]} 20. dxe5 {[%clk 0:01:55.3]} 20... Nxe5 {[%clk 0:02:03.4]} 21. Nxe5
{[%clk 0:01:55.1]} 21... Rxe5 {[%clk 0:02:00.7]} 22. Bf3 {[%clk 0:01:47.5]}
22... Rae8 {[%clk 0:01:59.6]} 23. Ne2 {[%clk 0:01:46.8]} 23... Be4 {[%clk
0:01:51.5]} 24. Nd4 {[%clk 0:01:41.7]} 24... Bxf3 {[%clk 0:01:41.2]} 25. Nxf3
{[%clk 0:01:42.6]} 25... Re4 {[%clk 0:01:41.3]} 26. bxc6 {[%clk 0:01:37.9]}
26... bxc6 {[%clk 0:01:40.6]} 27. Rab1 {[%clk 0:01:36.4]} 27... Rc4 {[%clk
0:01:40.3]} 28. Qb7 {[%clk 0:01:35.3]} 28... Re7 {[%clk 0:01:36.8]} 29. Qxc7
{[%clk 0:01:30.9]} 29... Rxc7 {[%clk 0:01:36.7]} 30. Rec1 {[%clk 0:01:31.8]}
30... Ne4 {[%clk 0:01:31.2]} 31. Rxc4 {[%clk 0:01:18.2]} 31... dxc4 {[%clk
0:01:31.1]} 32. Rc1 {[%clk 0:01:17.5]} 32... c3 {[%clk 0:01:23]} 33. Nd4 {[%clk
0:01:16.4]} 33... Rb7 {[%clk 0:00:57.2]} 34. f3 {[%clk 0:01:12.6]} 34... Nxc5
{[%clk 0:00:43.3]} 35. Rxc3 {[%clk 0:01:08.8]} 35... Ne6 {[%clk 0:00:43.2]} 36.
Nxe6 {[%clk 0:01:02]} 36... fxe6 {[%clk 0:00:43.3]} 37. Rxc6 {[%clk 0:01:02.3]}
37... Kf7 {[%clk 0:00:44]} 38. e4 {[%clk 0:01:01.7]} 38... Kf6 {[%clk
0:00:39.3]} 39. f4 {[%clk 0:00:57.2]} 39... g5 {[%clk 0:00:39.2]} 40. fxg5+
{[%clk 0:00:56.6]} 40... hxg5 {[%clk 0:00:38.6]} 41. Rc5 {[%clk 0:00:56.2]}
41... Rb1+ {[%clk 0:00:27.2]} 42. Kh2 {[%clk 0:00:54.7]} 42... Re1 {[%clk
0:00:27]} 43. Ra5 {[%clk 0:00:40]} 43... Rxe4 {[%clk 0:00:26.5]} 44. Rxa7 {[%clk
0:00:40.4]} 44... Re3 {[%clk 0:00:25]} 45. a4 {[%clk 0:00:29.2]} 45... Ra3
{[%clk 0:00:23.7]} 46. a5 {[%clk 0:00:29.9]} 46... Kf5 {[%clk 0:00:23.6]} 47.
Ra8 {[%clk 0:00:27.9]} 47... e5 {[%clk 0:00:23.2]} 48. a6 {[%clk 0:00:27.7]}
48... Ke4 {[%clk 0:00:08.2]} 49. a7 {[%clk 0:00:25.4]} 49... Ra4 {[%clk
0:00:07.7]} 50. Kg3 {[%clk 0:00:25]} 50... Ra3+ {[%clk 0:00:07.9]} 51. Kg4
{[%clk 0:00:25.2]} 51... Ke3 {[%clk 0:00:05.6]} 52. Re8 {[%clk 0:00:22.9]} 52...
Rxa7 {[%clk 0:00:04.2]} 53. Rxe5+ {[%clk 0:00:23.4]} 53... Kf2 {[%clk
0:00:04.9]} 54. g3 {[%clk 0:00:20.3]} 54... Rg7 {[%clk 0:00:04.1]} 55. Rxg5
{[%clk 0:00:18.7]} 55... Rh7 {[%clk 0:00:05]} 56. h4 {[%clk 0:00:18.9]} 56...
Ra7 {[%clk 0:00:03.6]} 57. Rf5+ {[%clk 0:00:17.7]} 1-0